fUSD/lending_fUSD_20240508
["ID","MTS","AMOUNT","RATE_DAILY","PERIOD"]
[326660409,1715207445134,-538.70563449,0.00022,2]
[326660410,1715207445144,-538.70563449,0.00022,2]
[326660411,1715207445154,-538.70563449,0.00022,2]
[326660412,1715207445164,-538.70563449,0.00022,2]
[326660413,1715207445174,-538.70563449,0.00022,2]
[326660414,1715207445183,-538.70563449,0.00022,2]
[326660415,1715207445193,-538.70563449,0.00022,2]
[326660416,1715207445202,-538.70563449,0.00022,2]
[326660417,1715207445212,-153.72507023,0.00022205,2]
[326660418,1715207445221,-166.66666666,0.00022215,2]
[326660419,1715207445231,-153.70873281,0.00022226,2]
[326660420,1715207445240,-10000.0,0.00022328,2]
[326660421,1715207445249,-152.49273871,0.00022389,2]
[326660422,1715207445259,-168.95757125,0.00022399,2]
[326660423,1715207445268,-269.97043528,0.00022425,2]
[326660424,1715207445285,-7479.24,0.00022433,2]
[326660425,1715207445304,-1413.335,0.00022489,2]
[326660426,1715207445315,-871.098,0.00022489,2]
[326660427,1715207445325,-2329.598,0.00022489,2]
[326660428,1715207445334,-1017.42,0.00022489,2]
[326660429,1715207445344,-2295.0,0.00022489,2]
[326660430,1715207445353,-37800.0,0.00022489,2]
[326660431,1715207445362,-543.734,0.00022489,2]
[326660432,1715207445372,-1257.0,0.00022489,2]
[326660433,1715207445382,-1226.0,0.00022489,2]
[326660434,1715207445392,-1788.0,0.00022489,2]
[326660435,1715207445401,-809.0,0.00022489,2]
[326660436,1715207445411,-611.0,0.00022489,2]
[326660437,1715207445420,-421.0,0.00022489,2]
[326660438,1715207445430,-448.981,0.00022489,2]
[326660439,1715207445439,-1058.0,0.00022489,2]
[326660440,1715207445448,-155.0,0.00022632,2]
[326660441,1715207445458,-297.38465913,0.00022632,2]
[326660442,1715207445467,-263.58999714,0.00022632,2]
[326660443,1715207445477,-192.16010717,0.00022633,2]
[326660444,1715207445486,-1120.50258917,0.00022635,2]
[326660445,1715207445497,-154.93021034,0.00022649,2]
[326660446,1715207445507,-150.38257666,0.00022656,2]
[326660447,1715207445517,-399.98528346,0.00022711,2]
[326660448,1715207445526,-272.56,0.000228,2]
[326660449,1715207445535,-269.97043528,0.00022922,2]
[326660450,1715207445545,-2259.43085999,0.00022938,2]
[326660451,1715207445554,-2143.63056,0.00023,2]
[326660452,1715207445564,-7466.0,0.00023011,2]
[326660453,1715207445574,-774.55004833,0.00023069,2]
[326660454,1715207445583,-196.63,0.000233,2]
[326660455,1715207445592,-269.97043528,0.00023301,2]
[326660456,1715207445602,-153.21847456,0.00023319,2]
[326660457,1715207445611,-152.49923917,0.00023342,2]
[326660458,1715207445620,-193.19,0.00023387,2]
[326660459,1715207445630,-2002.05142652,0.000234,2]
[326660460,1715207445639,-1198.94252494,0.00023457,2]
[326660461,1715207445648,-399.98528346,0.00023488,2]
[326660462,1715207445657,-269.97043528,0.00023537,2]
[326660463,1715207445667,-1204.0,0.0002354,2]
[326660464,1715207445676,-152.65006344,0.00023572,2]
[326660465,1715207445686,-7474.6,0.00023642,2]
[326660466,1715207445695,-152.65006344,0.00023721,2]
[326660471,1715207445705,-798.28809431,0.00023747,2]
[326660477,1715207445715,-157.050906,0.00023748,4]
[326660482,1715207445724,-399.98528346,0.00023825,2]
[326660486,1715207445733,-150.38257666,0.00023896,2]
[326660492,1715207445742,-150.38257666,0.00023976,2]
[326660497,1715207445751,-150.38257666,0.00023983,2]
[326660501,1715207445761,-37637.96581312,0.00024,2]
[326660506,1715207445771,-432.28243981,0.00024,2]
[326660511,1715207445781,-1072.44064238,0.00024,2]
[326660516,1715207445795,-3517.85702846,0.00024,2]
[326660519,1715207445804,-3517.85702846,0.00024,2]
[326660523,1715207445813,-3517.85702846,0.00024,2]
[326660527,1715207445823,-3517.85702846,0.00024,2]
[326660529,1715207445833,-3517.85702846,0.00024,2]
[326660531,1715207445843,-3517.85702846,0.00024,2]
[326660533,1715207445852,-3517.85702846,0.00024,2]
[326660534,1715207445862,-3517.85702846,0.00024,2]
[326660535,1715207445873,-3517.85702846,0.00024,2]
[326660536,1715207445883,-3517.85702846,0.00024,2]
[326660537,1715207445893,-272.56,0.00024,2]
[326660538,1715207445902,-153.21847456,0.0002405,2]
[326660539,1715207445912,-154.9735351,0.00024084,2]
[326660540,1715207445921,-1034.47722721,0.000241,2]
[326660541,1715207445931,-157.050906,0.00024148,4]
[326660542,1715207445943,-269.97043528,0.00024175,2]
[326660543,1715207445952,-166.66666666,0.00024181,2]
[326660544,1715207445961,-2602.28168975,0.00024201,2]
[326660545,1715207445971,-394.17085739,0.0002421,2]
[326660546,1715207445980,-180.0,0.0002423,2]
[326660547,1715207445989,-153.21847456,0.00024231,2]
[326660548,1715207445998,-152.49273871,0.0002426,2]
[326660549,1715207446008,-154.9735351,0.00024375,2]
[326660550,1715207446017,-154.00651485,0.00024389,2]
[326660551,1715207446027,-168.95757125,0.00024421,2]
[326660552,1715207446037,-153.21847456,0.00024425,2]
[326660553,1715207446047,-157.050906,0.00024448,4]
[326660554,1715207446059,-166.32939386,0.00024477,2]
[326660555,1715207446069,-174.98,0.0002455,2]
[326660556,1715207446253,-151.34,0.00024593,2]
[326660557,1715207446264,-196.63,0.000246,2]
[326660558,1715207446274,-7485.58,0.00024603,2]
[326660559,1715207446283,-201.26332486,0.00024658,2]
[326660560,1715207446293,-499.32,0.00024658,2]
[326660561,1715207446302,-172343.98774472,0.00024695,7]
[326660562,1715207446312,-1037.87625114,0.00024695,2]
[326660563,1715207446322,-1042.23614951,0.00024695,2]
[326660564,1715207446331,-37432.17503197,0.00024695,2]
[326660565,1715207446340,-2215.11343661,0.00024695,2]
[326660566,1715207446351,-250.42777297,0.00024695,2]
[326660567,1715207446360,-293.68275383,0.00024695,2]
[326660568,1715207446369,-180.32091532,0.00024695,2]
[326660569,1715207446379,-868.14,0.00024717,2]
[326660570,1715207446389,-868.14,0.00024717,2]
[326660571,1715207446399,-414.79,0.00024717,2]
[326660572,1715207446409,-868.14,0.00024717,2]
[326660573,1715207446418,-868.14,0.00024717,2]
[326660574,1715207446427,-868.14,0.00024717,2]
[326660575,1715207446437,-1736.28,0.00024717,2]
[326660576,1715207446446,-152.65006344,0.00024742,2]
[326660577,1715207446455,-382.95277325,0.00024747,2]
[326660578,1715207446465,-157.050906,0.00024748,4]
[326660579,1715207446474,-399.98528346,0.00024825,2]
[326660580,1715207446484,-150.0,0.00024875,2]
[326660581,1715207446493,-150.0,0.000249,4]
[326660582,1715207446504,-150.0,0.00024958,2]
[326660583,1715207446513,-150.0,0.00024975,2]
[326660584,1715207446522,-4720.79176402,0.00024999,2]
[326660585,1715207446532,-7486.41,0.00025,2]
[326660586,1715207446542,-1237.86298242,0.00025,2]
[326660587,1715207446551,-32947.39785472,0.00025,4]
[326660588,1715207446561,-367.27537986,0.00025,7]
[326660589,1715207446570,-565.81211069,0.00025,2]
[326660590,1715207446579,-12636.75901314,0.00025,2]
[326660591,1715207446588,-186.05517551,0.00025,60]
[326660592,1715207446598,-155.0,0.00025,2]
[326660593,1715207446608,-163.15091824,0.00025,2]
[326660594,1715207446617,-12505.53780629,0.00025,2]
[326660595,1715207446627,-53563.4492533,0.00025,2]
[326660596,1715207446637,-151.0,0.00025,7]
[326660597,1715207446646,-151.0,0.00025,7]
[326660598,1715207446658,-168.271257,0.00025,7]
[326660599,1715207446668,-151.0,0.00025,7]
[326660600,1715207446677,-168.271257,0.00025,7]
[326660601,1715207446687,-285.932116,0.00025,7]
[326660602,1715207446696,-151.0,0.00025,7]
[326660603,1715207446705,-151.0,0.00025,7]
[326660604,1715207446720,-151.0,0.00025,7]
[326660605,1715207446729,-151.0,0.00025,7]
[326660606,1715207446739,-174.543055,0.00025,7]
[326660607,1715207446748,-403.026842,0.00025,7]
[326660608,1715207446759,-154.00651485,0.00025011,2]
[326660609,1715207446768,-150.0,0.00025022,2]
[326660610,1715207446778,-150.38257666,0.00025092,2]
[326660611,1715207446790,-150.38257666,0.00025104,2]
[326660612,1715207446800,-157.050906,0.00025148,6]
[326660613,1715207446809,-168.95757125,0.00025153,2]
[326660614,1715207446820,-269.97043528,0.00025171,2]
[326660615,1715207446831,-272.56,0.000252,2]
[326660616,1715207446841,-150.0,0.00025206,2]
[326660617,1715207446851,-150.38257666,0.0002521,2]
[326660618,1715207446860,-269.97043528,0.00025212,2]
[326660619,1715207446870,-500.0,0.00025232,2]
[326660620,1715207446880,-189.398626,0.00025232,2]
[326660621,1715207446890,-818.653663,0.00025232,2]
[326660622,1715207446899,-215.883901,0.00025232,2]
[326660623,1715207446908,-196.452251,0.00025232,2]
[326660624,1715207446918,-2663.772098,0.00025232,2]
[326660625,1715207446928,-277.680981,0.00025232,2]
[326660626,1715207446937,-189.398625,0.00025232,2]
[326660627,1715207446947,-215.883901,0.00025232,2]
[326660628,1715207446956,-924.578302,0.00025232,2]
[326660629,1715207446965,-196.45225,0.00025232,2]
[326660630,1715207446975,-2663.772098,0.00025232,2]
[326660631,1715207446986,-158.852984,0.00025232,2]
[326660632,1715207446996,-277.680982,0.00025232,2]
[326660633,1715207447005,-158.852983,0.00025232,2]
[326660634,1715207447014,-173.550614,0.00025232,2]
[326660635,1715207447023,-150.0,0.00025289,2]
[326660636,1715207447032,-150.0,0.00025313,2]
[326660637,1715207447041,-150.0,0.00025343,2]
[326660638,1715207447052,-168.95757125,0.00025353,2]
[326660639,1715207447061,-150.0,0.00025359,2]
[326660640,1715207447070,-269.74,0.00025379,2]
[326660641,1715207447079,-150.0,0.000254,4]
[326660642,1715207447089,-399.98528346,0.00025435,2]
[326660643,1715207447099,-157.050906,0.00025448,6]
[326660644,1715207447108,-392.887,0.00025489,2]
[326660645,1715207447117,-1787.0,0.00025489,2]
[326660646,1715207447128,-1054.0,0.00025489,2]
[326660647,1715207447139,-150.0,0.0002551,2]
[326660648,1715207447148,-818.653663,0.00025548,2]
[326660649,1715207447158,-215.883901,0.00025548,2]
[326660650,1715207447168,-2663.772098,0.00025548,2]
[326660651,1715207447178,-277.680981,0.00025548,2]
[326660652,1715207447187,-215.883901,0.00025548,2]
[326660653,1715207447197,-924.578302,0.00025548,2]
[326660654,1715207447206,-2663.772098,0.00025548,2]
[326660655,1715207447215,-277.680982,0.00025548,2]
[326660656,1715207447225,-150.0,0.00025562,2]
[326660657,1715207447235,-150.0,0.00025588,2]
[326660658,1715207447244,-154.00651485,0.00025593,2]
[326660659,1715207447253,-150.0,0.00025615,2]
[326660660,1715207447263,-173.550614,0.00025653,2]
[326660661,1715207447273,-150.38257666,0.00025698,2]
[326660662,1715207447282,-151.0,0.00025711,7]
[326660663,1715207447291,-151.0,0.00025711,7]
[326660664,1715207447301,-247.654891,0.00025711,7]
[326660665,1715207447310,-399.98528346,0.00025718,2]
[326660666,1715207447320,-157.050906,0.00025748,6]
[326660667,1715207447329,-2259.43085999,0.00025782,2]
[326660668,1715207447338,-150.0,0.00025784,2]
[326660669,1715207447348,-196.63,0.000258,2]
[326660670,1715207447357,-150.0,0.00025819,2]
[326660671,1715207447366,-150.0,0.00025819,2]
[326660672,1715207447376,-150.0,0.0002582,2]
[326660673,1715207447385,-189.398626,0.00025863,2]
[326660674,1715207447395,-818.653663,0.00025863,2]
[326660675,1715207447404,-215.883901,0.00025863,2]
[326660676,1715207447413,-196.452251,0.00025863,2]
[326660677,1715207447423,-2663.772098,0.00025863,2]
[326660678,1715207447432,-277.680981,0.00025863,2]
[326660679,1715207447441,-189.398625,0.00025863,2]
[326660680,1715207447450,-215.883901,0.00025863,2]
[326660681,1715207447460,-196.45225,0.00025863,2]
[326660682,1715207447469,-924.578302,0.00025863,2]
[326660683,1715207447479,-2663.772098,0.00025863,2]
[326660684,1715207447489,-277.680982,0.00025863,2]
[326660685,1715207447498,-158.11,0.0002589,2]
[326660686,1715207447508,-150.0,0.000259,4]
[326660687,1715207447517,-150.0,0.00025921,2]
[326660688,1715207447527,-150.0,0.00025922,2]
[326660689,1715207447536,-774.55004833,0.00025946,2]
[326660690,1715207447545,-168.95757125,0.00025956,2]
[326660691,1715207447554,-150.0,0.00025958,2]
[326660692,1715207447564,-150.0,0.00025995,2]
[326660693,1715207447574,-1903.7390088,0.00026,27]
[326660694,1715207447584,-151.0,0.00026,7]
[326660695,1715207447595,-150.0,0.00026003,2]
[326660696,1715207447606,-500.0,0.00026022,2]
[326660697,1715207447615,-153.82159617,0.00026022,2]
[326660698,1715207447626,-168.95757125,0.00026054,2]
[326660699,1715207447635,-150.0,0.00026068,2]
[326660700,1715207447643,-173.550614,0.00026073,2]
[326660701,1715207447653,-150.0,0.00026114,2]
[326660702,1715207447663,-157.050906,0.00026148,8]
[326660703,1715207447672,-150.0,0.00026173,2]
[326660704,1715207447681,-818.653663,0.00026178,2]
[326660705,1715207447691,-215.883901,0.00026178,2]
[326660706,1715207447700,-2663.772098,0.00026178,2]
[326660707,1715207447710,-277.680981,0.00026178,2]
[326660708,1715207447719,-215.883901,0.00026178,2]
[326660709,1715207447728,-924.578302,0.00026178,2]
[326660710,1715207447738,-2663.772098,0.00026178,2]
[326660711,1715207447748,-277.680982,0.00026178,2]
[326660712,1715207447758,-150.0,0.00026209,2]
[326660713,1715207447768,-150.0,0.00026239,2]
[326660714,1715207447777,-150.0,0.00026317,2]
[326660715,1715207447789,-152.49273871,0.00026321,2]
[326660716,1715207447799,-176.22158103,0.00026348,2]
[326660717,1715207447808,-150.0,0.00026353,2]
[326660718,1715207447817,-272.56,0.000264,2]
[326660719,1715207447826,-150.0,0.000264,5]
[326660720,1715207447838,-150.0,0.00026425,2]
[326660721,1715207447850,-200.0,0.00026427,2]
[326660722,1715207447859,-150.0,0.00026431,2]
[326660723,1715207447870,-150.0,0.00026432,2]
[326660724,1715207447879,-157.050906,0.00026448,8]
[326660725,1715207447888,-152.79643267,0.00026448,2]
[326660726,1715207447897,-150.0,0.00026456,2]
[326660727,1715207447907,-150.0,0.00026458,2]
[326660728,1715207447917,-399.98528346,0.00026464,2]
[326660729,1715207447926,-189.398626,0.00026494,2]
[326660730,1715207447935,-818.653663,0.00026494,2]
[326660731,1715207447945,-215.883901,0.00026494,2]
[326660732,1715207447954,-196.452251,0.00026494,2]
[326660733,1715207447965,-2663.772098,0.00026494,2]
[326660734,1715207447974,-277.680981,0.00026494,2]
[326660735,1715207447983,-189.398625,0.00026494,2]
[326660736,1715207447993,-215.883901,0.00026494,2]
[326660737,1715207448002,-196.45225,0.00026494,2]
[326660738,1715207448011,-924.578302,0.00026494,2]
[326660739,1715207448020,-2663.772098,0.00026494,2]
[326660740,1715207448030,-277.680982,0.00026494,2]
[326660741,1715207448039,-173.550614,0.00026494,2]
[326660742,1715207448051,-150.0,0.00026528,2]
[326660743,1715207448060,-150.0,0.00026569,2]
[326660744,1715207448076,-150.0,0.00026638,2]
[326660745,1715207448089,-154.93021034,0.00026651,2]
[326660746,1715207448103,-414.79,0.00026708,2]
[326660747,1715207448113,-868.14,0.00026708,2]
[326660748,1715207448123,-868.14,0.00026708,2]
[326660749,1715207448136,-414.79,0.00026708,2]
[326660750,1715207448148,-1736.28,0.00026708,2]
[326660751,1715207448160,-157.050906,0.00026748,8]
[326660752,1715207448173,-168.95757125,0.00026785,2]
[326660753,1715207448185,-150.0,0.00026809,2]
[326660754,1715207448199,-269.97043528,0.00026837,2]
[326660755,1715207448210,-150.0,0.00026856,2]
[326660756,1715207448221,-3000.0,0.000269,9]
[326660757,1715207448233,-150.0,0.000269,5]
[326660758,1715207448244,-399.98528346,0.00026914,2]
[326660759,1715207448254,-2100.0,0.00026959,2]
[326660760,1715207448265,-399.98528346,0.00026975,2]
[326660762,1715207448278,-399.98528346,0.00026978,2]
[326660765,1715207448290,-1741.42627628,0.00027,2]
[326660767,1715207448302,-1800.0,0.00027,28]
[326660769,1715207448314,-196.63,0.00027,2]
[326660770,1715207448326,-150.0,0.00027037,2]
[326660771,1715207448338,-150.0,0.00027121,2]
[326660773,1715207448352,-399.98528346,0.00027142,2]
[326660774,1715207448364,-150.38257666,0.00027142,2]
[326660775,1715207448376,-157.050906,0.00027148,8]
[326660776,1715207448387,-150.0,0.00027156,2]
[326660777,1715207448401,-150.0,0.00027271,2]
[326660778,1715207448412,-10000.0,0.00027297,2]
[326660779,1715207448424,-1000.0,0.00027297,2]
[326660780,1715207448436,-168.95757125,0.00027358,2]
[326660781,1715207448448,-150.0,0.00027361,2]
[326660782,1715207448460,-150.38257666,0.00027384,2]
[326660783,1715207448471,-150.0,0.00027388,2]
[326660784,1715207448483,-269.97043528,0.00027388,2]
[326660785,1715207448495,-500.0,0.00027397,2]
[326660786,1715207448508,-441.10469184,0.00027397,2]
[326660787,1715207448520,-503.56550719,0.00027397,2]
[326660788,1715207448532,-500.0,0.00027397,2]
[326660789,1715207448542,-500.0,0.00027397,2]
[326660790,1715207448552,-500.0,0.00027397,2]
[326660791,1715207448563,-500.0,0.00027397,2]
[326660792,1715207448574,-500.0,0.00027397,2]
[326660793,1715207448586,-500.0,0.00027397,2]
[326660794,1715207448600,-504.92809554,0.00027397,2]
[326660795,1715207448610,-500.0,0.00027397,2]
[326660796,1715207448621,-504.46496003,0.00027397,2]
[326660797,1715207448630,-500.0,0.00027397,2]
[326660798,1715207448642,-937.08,0.00027397,2]
[326660799,1715207448654,-500.0,0.00027397,2]
[326660800,1715207448666,-500.0,0.00027397,2]
[326660801,1715207448678,-500.0,0.00027397,2]
[326660802,1715207448688,-500.0,0.00027397,2]
[326660803,1715207448699,-500.0,0.00027397,2]
[326660804,1715207448711,-500.0,0.00027397,2]
[326660805,1715207448723,-500.0,0.00027397,2]
[326660806,1715207448734,-500.0,0.00027397,2]
[326660807,1715207448744,-444.83075051,0.00027397,2]
[326660808,1715207448755,-500.0,0.00027397,2]
[326660809,1715207448766,-500.0,0.00027397,2]
[326660810,1715207448777,-500.0,0.00027397,2]
[326660811,1715207448789,-500.0,0.00027397,2]
[326660812,1715207448802,-500.0,0.00027397,2]
[326660813,1715207448813,-1480.17,0.00027397,2]
[326660814,1715207448823,-500.0,0.00027397,2]
[326660815,1715207448839,-500.0,0.00027397,2]
[326660816,1715207448852,-500.0,0.00027397,2]
[326660817,1715207448863,-500.0,0.00027397,2]
[326660818,1715207448876,-500.0,0.00027397,2]
[326660819,1715207448887,-500.0,0.00027397,2]
[326660820,1715207448899,-500.0,0.00027397,2]
[326660821,1715207448910,-500.0,0.00027397,2]
[326660822,1715207448922,-500.0,0.00027397,2]
[326660823,1715207448933,-500.0,0.00027397,2]
[326660824,1715207448943,-500.0,0.00027397,2]
[326660825,1715207448955,-500.0,0.00027397,2]
[326660826,1715207448967,-500.0,0.00027397,2]
[326660827,1715207448979,-500.0,0.00027397,2]
[326660828,1715207448990,-500.0,0.00027397,2]
[326660829,1715207449000,-626.2,0.00027397,2]
[326660830,1715207449011,-500.0,0.00027397,2]
[326660831,1715207449023,-543.13,0.00027397,2]
[326660832,1715207449033,-504.64856969,0.00027397,2]
[326660833,1715207449044,-500.0,0.00027397,2]
[326660834,1715207449055,-530.05,0.00027397,2]
[326660835,1715207449067,-267.25443111,0.00027397,2]
[326660836,1715207449077,-614.27,0.00027397,2]
[326660837,1715207449088,-500.0,0.00027397,2]
[326660838,1715207449100,-1486.86,0.00027397,2]
[326660839,1715207449110,-500.0,0.00027397,2]
[326660840,1715207449122,-545.84,0.00027397,2]
[326660841,1715207449133,-500.0,0.00027397,2]
[326660842,1715207449143,-500.0,0.00027397,2]
[326660843,1715207449154,-500.0,0.00027397,2]
[326660844,1715207449164,-502.48604274,0.00027397,2]
[326660845,1715207449176,-500.0,0.00027397,2]
[326660846,1715207449187,-500.0,0.00027397,2]
[326660847,1715207449198,-500.0,0.00027397,2]
[326660848,1715207449208,-504.48,0.00027397,2]
[326660849,1715207449219,-628.4,0.00027397,2]
[326660850,1715207449230,-500.0,0.00027397,2]
[326660851,1715207449240,-500.0,0.00027397,2]
[326660852,1715207449251,-500.0,0.00027397,2]
[326660853,1715207449262,-500.0,0.00027397,2]
[326660854,1715207449272,-500.0,0.00027397,2]
[326660855,1715207449283,-500.0,0.00027397,2]
[326660856,1715207449294,-500.0,0.00027397,2]
[326660857,1715207449305,-500.0,0.00027397,2]
[326660858,1715207449316,-624.66,0.00027397,2]
[326660859,1715207449326,-500.0,0.00027397,2]
[326660860,1715207449337,-500.0,0.00027397,2]
[326660861,1715207449348,-500.0,0.00027397,2]
[326660862,1715207449359,-500.0,0.00027397,2]
[326660863,1715207449369,-500.0,0.00027397,2]
[326660864,1715207449380,-500.0,0.00027397,2]
[326660865,1715207449390,-500.0,0.00027397,2]
[326660866,1715207449401,-500.0,0.00027397,2]
[326660867,1715207449411,-500.0,0.00027397,2]
[326660868,1715207449422,-594.89,0.00027397,2]
[326660869,1715207449432,-534.39,0.00027397,2]
[326660870,1715207449443,-500.0,0.00027397,2]
[326660871,1715207449454,-500.0,0.00027397,2]
[326660872,1715207449465,-500.0,0.00027397,2]
[326660873,1715207449475,-500.0,0.00027397,2]
[326660874,1715207449486,-500.0,0.00027397,2]
[326660875,1715207449498,-636.16307757,0.00027397,2]
[326660876,1715207449511,-500.0,0.00027397,2]
[326660877,1715207449525,-500.0,0.00027397,2]
[326660878,1715207449536,-500.0,0.00027397,2]
[326660879,1715207449546,-500.0,0.00027397,2]
[326660880,1715207449557,-533.55,0.00027397,2]
[326660881,1715207449567,-500.0,0.00027397,2]
[326660882,1715207449578,-500.0,0.00027397,2]
[326660883,1715207449588,-500.0,0.00027397,2]
[326660884,1715207449599,-500.0,0.00027397,2]
[326660885,1715207449610,-194.32,0.00027397,2]
[326660886,1715207449621,-500.0,0.00027397,2]
[326660887,1715207449632,-639.36,0.00027397,2]
[326660888,1715207449642,-500.0,0.00027397,2]
[326660889,1715207449653,-500.0,0.00027397,2]
[326660890,1715207449663,-509.47620125,0.00027397,2]
[326660891,1715207449674,-500.0,0.00027397,2]
[326660892,1715207449685,-500.0,0.00027397,2]
[326660893,1715207449695,-500.0,0.00027397,2]
[326660894,1715207449708,-569.54,0.00027397,2]
[326660895,1715207449719,-500.0,0.00027397,2]
[326660896,1715207449730,-500.0,0.00027397,2]
[326660897,1715207449741,-500.0,0.00027397,2]
[326660898,1715207449751,-500.0,0.00027397,2]
[326660899,1715207449762,-500.0,0.00027397,2]
[326660900,1715207449773,-500.0,0.00027397,2]
[326660901,1715207449783,-500.0,0.00027397,2]
[326660902,1715207449797,-500.0,0.00027397,2]
[326660903,1715207449807,-500.0,0.00027397,2]
[326660904,1715207449818,-500.0,0.00027397,2]
[326660905,1715207449828,-500.0,0.00027397,2]
[326660906,1715207449840,-300.0,0.00027397,2]
[326660907,1715207449851,-500.0,0.00027397,2]
[326660908,1715207449862,-500.0,0.00027397,2]
[326660909,1715207449874,-500.0,0.00027397,2]
[326660910,1715207449885,-500.0,0.00027397,2]
[326660911,1715207449895,-500.0,0.00027397,2]
[326660912,1715207449906,-500.0,0.00027397,2]
[326660913,1715207449916,-500.0,0.00027397,2]
[326660914,1715207449927,-500.0,0.00027397,2]
[326660915,1715207449937,-500.0,0.00027397,2]
[326660916,1715207449947,-500.0,0.00027397,2]
[326660917,1715207449957,-500.0,0.00027397,2]
[326660918,1715207449968,-500.0,0.00027397,2]
[326660919,1715207449979,-500.0,0.00027397,2]
[326660920,1715207449989,-500.0,0.00027397,2]
[326660921,1715207449999,-500.0,0.00027397,2]
[326660922,1715207450009,-500.0,0.00027397,2]
[326660923,1715207450020,-500.0,0.00027397,2]
[326660924,1715207450031,-500.0,0.00027397,2]
[326660925,1715207450043,-152.073657,0.00027397,7]
[326660926,1715207450054,-500.0,0.00027397,2]
[326660927,1715207450065,-152.745438,0.00027397,7]
[326660928,1715207450076,-500.0,0.00027397,2]
[326660929,1715207450086,-500.0,0.00027397,2]
[326660930,1715207450098,-500.0,0.00027397,2]
[326660931,1715207450108,-500.0,0.00027397,2]
[326660932,1715207450119,-500.0,0.00027397,2]
[326660933,1715207450130,-500.0,0.00027397,2]
[326660934,1715207450141,-1000.0,0.00027397,2]
[326660935,1715207450393,-500.0,0.00027397,2]
[326660936,1715207450413,-605.93,0.00027397,2]
[326660937,1715207450425,-500.0,0.00027397,2]
[326660938,1715207450435,-500.0,0.00027397,2]
[326660939,1715207450446,-500.0,0.00027397,2]
[326660940,1715207450455,-500.0,0.00027397,2]
[326660941,1715207450465,-500.0,0.00027397,2]
[326660942,1715207450475,-500.0,0.00027397,2]
[326660943,1715207450484,-500.0,0.00027397,2]
[326660944,1715207450494,-500.95297578,0.00027397,2]
[326660945,1715207450503,-500.0,0.00027397,2]
[326660946,1715207450512,-500.0,0.00027397,2]
[326660947,1715207450522,-500.0,0.00027397,2]
[326660948,1715207450531,-503.80988093,0.00027397,2]
[326660949,1715207450541,-500.0,0.00027397,2]
[326660950,1715207450550,-206.321037,0.00027397,2]
[326660951,1715207450560,-531.02,0.00027397,2]
[326660952,1715207450569,-403.32577672,0.00027397,2]
[326660953,1715207450579,-500.0,0.00027397,2]
[326660954,1715207450589,-500.0,0.00027397,2]
[326660955,1715207450599,-500.0,0.00027397,2]
[326660956,1715207450607,-500.0,0.00027397,2]
[326660957,1715207450616,-500.0,0.00027397,2]
[326660958,1715207450626,-500.0,0.00027397,2]
[326660959,1715207450635,-500.0,0.00027397,2]
[326660960,1715207450645,-500.0,0.00027397,2]
[326660961,1715207450654,-500.0,0.00027397,2]
[326660962,1715207450664,-500.0,0.00027397,2]
[326660963,1715207450673,-500.0,0.00027397,2]
[326660964,1715207450683,-500.0,0.00027397,2]
[326660965,1715207450692,-500.0,0.00027397,2]